Workbook

Sheet BOM
A1: Subsystem | B1: Manufacturer | C1: Part Number | D1: Qty | E1: Designator | F1: Description | G1: Package | H1: T-storage | I1: Est. Cost | J1: Qty | K1: $ Ext. | L1: Source | M1: Length | N1: Width | O1: Height | P1: Depth | Q1: Units | R1: Length | S1: Width | T1: Height | U1: Depth | V1: Units
A2: +12v Supply | D2: =1+LEN(E2)-LEN(SUBSTITUTE(E2,",","")) -> 1 | E2: C13 | F2: 0.68 uF on BOOST | I2: 0.15 | K2: =D2*I2 -> 0.15 | R2: =IF(AND($Q2<>"",M2<>""),M2*VLOOKUP($Q2,$A$70:$B$72,2),"") ->  | S2: =IF(AND($Q2<>"",N2<>""),N2*VLOOKUP($Q2,$A$70:$B$72,2),"") ->  | T2: =IF(AND($Q2<>"",O2<>""),O2*VLOOKUP($Q2,$A$70:$B$72,2),"") ->  | U2: =IF(AND($Q2<>"",P2<>""),P2*VLOOKUP($Q2,$A$70:$B$72,2),"") ->  | V2: =IF(Q2<>"",IF(Q2=$A$72,$A$71,$A$72),"") -> 
A3: +12v Supply | D3: 1 | E3: C7 | F3: 0.47 uF on VCCINT | I3: 0.15 | K3: =D3*I3 -> 0.15
A4: +12v Supply | D4: 1 | E4: C3 | F4: 10 uF 75v | I4: 0.25 | K4: 0.25
A5: +12v Supply | D5: 1 | E5: C14 | F5: 100 uF 15v | I5: 0.35 | K5: 0.35
A6: +12v Supply | D6: 1 | E6: C4 | F6: 10 nF | I6: 0.05 | K6: 0.05
A7: +12v Supply | D7: 1 | E7: C5 | F7: 2.2 nF | I7: 0.05 | K7: 0.05
A8: +12v Supply | B8: On Semi | C8: MBRS360BT3G | D8: 1 | E8: D2 | F8: 4A, 60v | G8: SMB | I8: 0.29916 | J8: 250 | K8: 0.29916 | L8: Digi-Key | M8: 8.13 | N8: 6.1 | O8: 2.41 | Q8: mm | R8: 0.3200787402 | S8: 0.2401574803 | T8: 0.09488188976 | V8: inch
A9: +12v Supply | B9: Linear Tech | C9: LT3690EUFE#PBF | D9: 1 | E9: IC3 | F9: Switching P.S. | I9: 6.01 | J9: 100 | K9: 6.01 | L9: Digi-Key | M9: 6 | N9: 4 | O9: 0.75 | Q9: mm | R9: 0.2362204724 | S9: 0.157480315 | T9: 0.02952755906 | V9: inch
A10: +12v Supply | C10: R? | D10: 1 | E10: R17 | F10: ???R on VC | I10: 0.01 | K10: 0.01
A11: +12v Supply | D11: 1 | E11: R21 | F11: 73.2K, 0.1W, 1% | I11: 0.01 | K11: 0.01
A12: +12v Supply | D12: 1 | E12: R22 | F12: 38.3K, 0.1W, 1% | I12: 0.01 | K12: 0.01
A13: +12v Supply | C13: R? | D13: 1 | E13: R23 | F13: 348K, 0.1W, 1% | I13: 0.01 | K13: 0.01
A14: +12v Supply | B14: TDK Corp | C14: SLF12575T-470M2R7-H | D14: 1 | E14: T1 | F14: 47 uH, 2.7A (2.7A Sat) | I14: 0.825 | J14: 500 | K14: 0.825 | L14: Digi-Key | M14: 12.5 | N14: 12.5 | O14: 7.5 | Q14: mm | R14: 0.4921259843 | S14: 0.4921259843 | T14: 0.2952755906 | V14: inch
A15: +12v Supply | B15: Panasonic | C15: ERJ-2RKF1003X | D15: =1+LEN(E15)-LEN(SUBSTITUTE(E15,",","")) -> 1 | E15: R31 | F15: 100K, 0.1W, 1% | G15: 0402 | H15: -55, +125 | I15: 0.01364 | J15: 250 | K15: =D15*I15 -> 0.01364 | L15: Digi-Key | M15: 1 | N15: 0.5 | O15: 0.4 | Q15: mm | R15: 0.03937007874 | S15: 0.01968503937 | T15: 0.0157480315 | V15: inch
A16: +12v Supply | B16: Panasonic | C16: ERJ-2RKF1001X | D16: =1+LEN(E16)-LEN(SUBSTITUTE(E16,",","")) -> 1 | E16: R32 | F16: 1K, 0.1W, 1% | G16: 0402 | H16: -55, +125 | I16: 0.01364 | J16: 250 | K16: =D16*I16 -> 0.01364 | L16: Digi-Key | M16: 1 | N16: 0.5 | O16: 0.4 | Q16: mm | R16: 0.03937007874 | S16: 0.01968503937 | T16: 0.0157480315 | V16: inch
A17: +12v Shutdown | D17: 1 | E17: R5 | F17: ???R, 0.1W, 1% | G17: 0402 | I17: 0.01 | K17: 0.01 | M17: 1 | N17: 0.5 | O17: 0.4 | Q17: mm | R17: 0.03937007874 | S17: 0.01968503937 | T17: 0.0157480315 | V17: inch
A18: +12v Shutdown | D18: 1 | E18: R6 | F18: ???R, 0.1W, 1% | G18: 0402 | I18: 0.01 | K18: 0.01 | M18: 1 | N18: 0.5 | O18: 0.4 | Q18: mm | R18: 0.03937007874 | S18: 0.01968503937 | T18: 0.0157480315 | V18: inch
A19: +12v Shutdown | D19: 1 | E19: C1 | F19: 0.1uF, 10v, 20% | G19: 0402 | I19: 0.01 | J19: 250 | K19: =D19*I19 -> 0.01 | L19: Digi-Key | M19: 1 | N19: 0.5 | O19: 0.55 | Q19: mm | R19: 0.03937007874 | S19: 0.01968503937 | T19: 0.02165354331 | V19: inch
A20: +3.3v Supply | B20: TDK Corp | C20: C1005X5R1A104M | D20: 1 | E20: C12 | F20: 0.1uF, 10v, 20% | G20: 0402 | I20: 0.01364 | J20: 250 | K20: 0.01364 | L20: Digi-Key | M20: 1 | N20: 0.5 | O20: 0.55 | Q20: mm | R20: 0.03937007874 | S20: 0.01968503937 | T20: 0.02165354331 | V20: inch
A21: +3.3v Supply | B21: Panasonic | C21: EEE-1JA220UP | D21: 1 | E21: C6 | F21: 22uF 63v | G21: CAN SMD | I21: 0.26 | J21: 250 | K21: 0.26 | L21: Digi-Key | M21: 8 | N21: 8 | O21: 6.2 | Q21: mm | R21: 0.3149606299 | S21: 0.3149606299 | T21: 0.2440944882 | V21: inch
A22: +3.3v Supply | B22: TDK Corp | C22: C2012X7R2A104M | D22: 1 | E22: C11 | F22: 0.1uF, 100v, 20% | G22: 0805 | I22: 0.075 | J22: 250 | K22: 0.075 | L22: Digi-Key | M22: 2 | N22: 1.25 | O22: 1.45 | Q22: mm | R22: 0.07874015748 | S22: 0.04921259843 | T22: 0.05708661417 | V22: inch
A23: +3.3v Supply | B23: NXP | C23: BAS16,215 | D23: 1 | E23: D1 | F23: 215mA, 100v, 250mW | G23: SOT-23 | H23: -65, +150 | I23: 0.04752 | J23: 250 | K23: 0.04752 | L23: Digi-Key | M23: 3.04 | N23: 2.64 | O23: 1.22 | Q23: mm | R23: 0.1196850394 | S23: 0.1039370079 | T23: 0.04803149606 | V23: inch
A24: +3.3v Supply | B24: National | C24: LM2936HVBMA-3.3 | D24: 1 | E24: IC2 | F24: 3.3v Regulator | G24: TO-252 | I24: 1.54 | J24: 250 | K24: 1.54 | L24: Digi-Key | M24: 9.7 | N24: 6.58 | O24: 2.3 | Q24: mm | R24: 0.3818897638 | S24: 0.2590551181 | T24: 0.0905511811 | V24: inch
A25: Keypad | B25: FCI | C25: SFW8S-2STME1LF | D25: 1 | E25: J2 | F25: 8-pin flex cable connector | G25: SMD | I25: 0.5662 | J25: 250 | K25: 0.5662 | L25: Digi-Key | M25: 14.4 | N25: 3.6 | O25: 5.3 | Q25: mm | R25: 0.5669291339 | S25: 0.1417322835 | T25: 0.2086614173 | V25: inch
A26: Keypad | B26: Fairchild | C26: MMBT3904 | D26: 2 | E26: Q1,Q2 | F26: NPN, 200 mA, 40v, Beta 100 | G26: SOT-23 | H26: -55, +150 | I26: 0.05732 | J26: 250 | K26: 0.11464 | L26: Digi-Key | M26: 3.04 | N26: 2.64 | O26: 1.22 | Q26: mm | R26: 0.1196850394 | S26: 0.1039370079 | T26: 0.04803149606 | V26: inch
A27: Keypad | B27: Panasonic | C27: ERJ-2RKF2051X | D27: 1 | E27: R7 | F27: 2.050K 0.1W 1% | G27: 0402 | H27: -55, +125 | I27: 0.01364 | J27: 250 | K27: 0.01364 | L27: Digi-Key | M27: 1 | N27: 0.5 | O27: 0.4 | Q27: mm | R27: 0.03937007874 | S27: 0.01968503937 | T27: 0.0157480315 | V27: inch
A28: Keypad | B28: Panasonic | C28: ERJ-2RKF1001X | D28: 5 | E28: R8,R9,R10,R11,R12 | F28: 1.000K 0.1W 1% | G28: 0402 | H28: -55, +125 | I28: 0.01364 | J28: 250 | K28: 0.0682 | L28: Digi-Key | M28: 1 | N28: 0.5 | O28: 0.4 | Q28: mm | R28: 0.03937007874 | S28: 0.01968503937 | T28: 0.0157480315 | V28: inch
A29: Keypad | B29: Panasonic | C29: ERJ-2RKF3302X | D29: 1 | E29: R13 | F29: 33K, 0.1W, 1% | G29: 0402 | H29: -30, +100 | I29: 0.01364 | J29: 250 | K29: =D29*I29 -> 0.01364 | L29: Digi-Key | M29: 1 | N29: 0.5 | O29: 0.4 | Q29: mm | R29: 0.03937007874 | S29: 0.01968503937 | T29: 0.0157480315 | V29: inch
A30: Keypad | B30: Mallory | C30: PK-12N40PQ | D30: 1 | E30: SG1 | F30: Acoustic Signal, 4.1kHz, 3-15v, -20to90C | I30: 2.2058 | J30: 100 | K30: 2.2058 | L30: Digi-Key | M30: 14 | N30: 14 | O30: 7.7 | Q30: mm | R30: 0.5511811024 | S30: 0.5511811024 | T30: 0.3031496063 | V30: inch
A31: Keypad | B31: Taiyo Yuden | C31: UMK105B7102KV-F | D31: 5 | E31: C19,C20,C21,C22,C23 | F31: 1000PF 50V 10% | G31: 0402 | I31: 0.0078 | J31: 250 | K31: 0.039 | L31: Digi-Key | M31: 1 | N31: 0.5 | O31: 0.4 | Q31: mm | R31: 0.03937007874 | S31: 0.01968503937 | T31: 0.0157480315 | V31: inch
A32: LIN | B32: TDK Corp | C32: C2012X7R2A104M | D32: 1 | E32: C15 | F32: 0.1uF, 100v, 20% | G32: 0805 | I32: 0.075 | J32: 250 | K32: 0.075 | L32: Digi-Key | M32: 2 | N32: 1.25 | O32: 1.45 | Q32: mm | R32: 0.07874015748 | S32: 0.04921259843 | T32: 0.05708661417 | V32: inch
A33: LIN | B33: TDK Corp | C33: C1608C0G2A221J | D33: 1 | E33: C16 | F33: 220pF, 100v, 5% | G33: 0603 | I33: 0.039 | J33: 250 | K33: 0.039 | L33: Digi-Key | M33: 1.6 | N33: 0.8 | O33: 0.95 | Q33: mm | R33: 0.06299212598 | S33: 0.03149606299 | T33: 0.0374015748 | V33: inch
A34: LIN | B34: NXP | C34: BAS16,215 | D34: =1+LEN(E34)-LEN(SUBSTITUTE(E34,",","")) -> 1 | E34: D3 | F34: 215mA, 100v, 250mW (DO NOT POPULATE) | G34: SOT-23 | H34: -65, +150 | I34: 0.04752 | J34: 250 | K34: =D34*I34 -> 0.04752 | L34: Digi-Key | M34: 3.04 | N34: 2.64 | O34: 1.22 | Q34: mm | R34: 0.1196850394 | S34: 0.1039370079 | T34: 0.04803149606 | V34: inch
A35: LIN | B35: NXP | C35: BZX84-B27,215 | D35: 1 | E35: D4 | F35: 27v Zener | G35: SOT-23 | H35: -65, +150 | I35: 0.07864 | J35: 250 | K35: 0.07864 | L35: Digi-Key | M35: 3.04 | N35: 2.64 | O35: 1.22 | Q35: mm | R35: 0.1196850394 | S35: 0.1039370079 | T35: 0.04803149606 | V35: inch
A36: LIN | B36: Infineon | C36: TLE7259-2GU | D36: 1 | E36: IC4 | F36: LIN Transceiver | G36: 8-SOIC | I36: 1.2693 | J36: 100 | K36: 1.2693 | L36: Digi-Key | M36: 5 | N36: 6 | O36: 1.75 | Q36: mm | R36: 0.1968503937 | S36: 0.2362204724 | T36: 0.0688976378 | V36: inch
A37: LIN | B37: Fairchild | C37: MMBT3904 | D37: 1 | E37: Q3 | F37: NPN, 200 mA, 40v, Beta 100 | G37: SOT-23 | H37: -55, +150 | I37: 0.05732 | J37: 250 | K37: =D37*I37 -> 0.05732 | L37: Digi-Key | M37: 3.04 | N37: 2.64 | O37: 1.22 | Q37: mm | R37: 0.1196850394 | S37: 0.1039370079 | T37: 0.04803149606 | V37: =IF(Q37<>"",IF(Q37=$A$72,$A$71,$A$72),"") -> inch
A38: LIN | B38: Infineon | C38: BSS123 L6327 | D38: 1 | E38: Q4 | F38: N-channel MOSFET | G38: SOT-23 | H38: -55, +150 | I38: 0.1512 | J38: 100 | K38: 0.1512 | L38: Digi-Key | M38: 3.04 | N38: 2.64 | O38: 1.22 | Q38: mm | R38: 0.1196850394 | S38: 0.1039370079 | T38: 0.04803149606 | V38: inch
A39: LIN | B39: Panasonic | C39: ERJ-2RKF1003X | D39: 1 | E39: R24 | F39: 100K, 0.1W, 1% | G39: 0402 | H39: -55, +125 | I39: 0.01364 | J39: 250 | K39: 0.01364 | L39: Digi-Key | M39: 1 | N39: 0.5 | O39: 0.4 | Q39: mm | R39: 0.03937007874 | S39: 0.01968503937 | T39: 0.0157480315 | V39: inch
A40: LIN | B40: Stackpole | C40: RNCP1206FTD2K00 | D40: =1+LEN(E40)-LEN(SUBSTITUTE(E40,",","")) -> 2 | E40: R25, R36 | F40: 2K, 0.5W, 1% (DO NOT POPULATE) | G40: 1206 | I40: 0.02016 | J40: 250 | K40: =D40*I40 -> 0.04032 | L40: Digi-Key | M40: 3.1 | N40: 1.5 | O40: 0.6 | Q40: mm | R40: 0.1220472441 | S40: 0.05905511811 | T40: 0.02362204724 | V40: inch
A41: LIN | D41: 1 | E41: R27 | F41: R? | I41: 0.01 | K41: 0.01
A42: LIN | D42: 1 | E42: R28 | F42: R? | I42: 0.01 | K42: 0.01
A43: Micro | B43: TDK Corp | C43: C1005X5R1A104M | D43: 1 | E43: C2 | F43: 0.1uF, 10v, 20% | G43: 0402 | I43: 0.01364 | J43: 250 | K43: 0.01364 | L43: Digi-Key | M43: 1 | N43: 0.5 | O43: 0.4 | Q43: mm | V43: inch
A44: Micro | B44: Microchip | C44: PIC18F25K22-E/SO-ND | D44: 1 | E44: IC1 | F44: PIC Microprocessor | G44: SOIC-28 | H44: -65, +150 | I44: 2.08 | J44: 300 | K44: 2.08 | L44: Digi-Key | M44: 17.9 | N44: 10.3 | O44: 2.65 | Q44: mm | R44: =IF(AND($Q44<>"",M44<>""),M44*VLOOKUP($Q44,$A$70:$B$72,2),"") -> 0.7047244094 | S44: =IF(AND($Q44<>"",N44<>""),N44*VLOOKUP($Q44,$A$70:$B$72,2),"") -> 0.405511811 | T44: =IF(AND($Q44<>"",O44<>""),O44*VLOOKUP($Q44,$A$70:$B$72,2),"") -> 0.1043307087 | U44: =IF(AND($Q44<>"",P44<>""),P44*VLOOKUP($Q44,$A$70:$B$72,2),"") ->  | V44: inch
A45: Micro | B45: Sullins | C45: NPPC071KFXD | D45: 1 | E45: J1 | F45: 7-Pin Programming connector | I45: 0.644 | J45: 250 | K45: 0.644 | L45: Digi-Key | M45: 18.28 | N45: 2.5 | O45: 7.1 | Q45: mm | R45: 0.7196850394 | S45: 0.09842519685 | T45: 0.2795275591 | V45: inch
A46: Micro | B46: Panasonic | C46: ERJ-8GEYJ101V | D46: 1 | E46: R4 | F46: 100R 1/4W 5% | G46: 1206 | H46: -55, +125 | I46: 0.01364 | J46: 250 | K46: 0.01364 | L46: Digi-Key | M46: 3.2 | N46: 1.6 | O46: 0.7 | Q46: mm | R46: 0.125984252 | S46: 0.06299212598 | T46: 0.02755905512 | V46: inch
A47: Motor | B47: TDK Corp | C47: C2012X7R2A104M | D47: 1 | E47: C18 | F47: 0.1uF, 100v, 20% | G47: 0805 | I47: 0.075 | J47: 250 | K47: 0.075 | L47: Digi-Key | M47: 2 | N47: 1.25 | Q47: mm | R47: 0.07874015748 | S47: 0.04921259843 | V47: inch
A48: Motor | B48: Infineon | C48: TLE5205-2G | D48: 1 | E48: IC5 | F48: H-Bridge | G48: TO-263 | I48: 5.4107 | J48: 100 | K48: 5.4107 | L48: Digi-Key | M48: 15 | N48: 10 | O48: 4.4 | Q48: mm | R48: 0.5905511811 | S48: 0.3937007874 | T48: 0.1732283465 | V48: inch
A49: Motor | B49: Mabuchi | C49: FC280SC-20150 | D49: 1 | E49: Motor | F49: Motor | I49: 1.95 | J49: 100 | K49: 1.95 | L49: Kysan | M49: 45 | N49: 24.2 | O49: 18.3 | Q49: mm | R49: 1.771653543 | S49: 0.9527559055 | T49: 0.7204724409 | V49: inch
A50: Motor | B50: Panasonic | C50: ERJ-2RKF4751X | D50: =1+LEN(E50)-LEN(SUBSTITUTE(E50,",","")) -> 1 | E50: R26 | F50: 75K, 0.1W, 1% | G50: 0402 | H50: -55, +125 | I50: 0.01364 | J50: 250 | K50: 0.01364 | L50: Digi-Key | M50: 1 | N50: 0.5 | O50: 0.4 | Q50: mm | R50: 0.03937007874 | S50: 0.01968503937 | T50: 0.0157480315 | V50: inch
A51: Sense | B51: TDK Corp | C51: C1005X7S2A103K | D51: 3 | E51: C8,C9,C10 | F51: 0.01uF 60v | G51: 0402 | H51: -55, +125 | I51: 0.02924 | J51: 250 | K51: 0.08772 | L51: Digi-Key | M51: 1 | N51: 0.5 | O51: 0.55 | Q51: mm | R51: 0.03937007874 | S51: 0.01968503937 | T51: 0.02165354331 | V51: inch
A52: Sense | B52: Panasonic | C52: ERJ-2RKF1003X | D52: 3 | E52: R14,R15,R16 | F52: 100K, 0.1W, 1% | G52: 0402 | H52: -55, +125 | I52: 0.01364 | J52: 250 | K52: 0.04092 | L52: Digi-Key | M52: 1 | N52: 0.5 | O52: 0.4 | Q52: mm | R52: 0.03937007874 | S52: 0.01968503937 | T52: 0.0157480315 | V52: inch
A53: Sense | B53: Panasonic | C53: ERJ-2RKF8871X | D53: 3 | E53: R18,R19,R20 | F53: 8870R, 0.1W, 1% | G53: 0402 | H53: -55, +125 | I53: 0.01364 | J53: 250 | K53: 0.04092 | L53: Digi-Key | M53: 1 | N53: 0.5 | O53: 0.4 | Q53: mm | R53: 0.03937007874 | S53: 0.01968503937 | T53: 0.0157480315 | V53: inch
A54: Sense | B54: Panasonic | C54: ERJ-8GEYJ562V | D54: 2 | E54: R34,R35 | F54: 5.6K, 0.25W, 5% | G54: 1206 | H54: -55, +125 | I54: 0.01364 | J54: 250 | K54: 0.02728 | L54: Digi-Key | M54: 3.2 | N54: 1.6 | O54: 0.7 | Q54: mm | R54: 0.125984252 | S54: 0.06299212598 | T54: 0.02755905512 | V54: inch
A55: Wake Out | B55: TDK Corp | C55: C2012X7R2A104M | D55: 1 | E55: C17 | F55: 0.1uF, 100v, 20% | G55: 0805 | I55: 0.075 | J55: 250 | K55: 0.075 | L55: Digi-Key | M55: 2 | N55: 1.25 | O55: 1.45 | Q55: mm | R55: 0.07874015748 | S55: 0.04921259843 | T55: 0.05708661417 | V55: inch
A56: Wake Out | B56: Infineon | C56: BSP452 | D56: 1 | E56: IC6 | F56: High side switch | G56: SOT-223 | I56: 1.4281 | J56: 100 | K56: 1.4281 | L56: Digi-Key | M56: 6.5 | N56: 7 | O56: 1.7 | Q56: mm | R56: 0.2559055118 | S56: 0.2755905512 | T56: 0.06692913386 | V56: inch
A57: Development | B57: Panasonic | C57: LNJ308G8LRA | D57: 3 | E57: LED1, LED2, LED3 | F57: Green LEDs (-30 to +85) | G57: 0603 | I57: 0.139 | J57: 250 | K57: 0.417 | L57: Digi-Key | M57: 1.6 | N57: 0.8 | O57: 0.8 | Q57: mm | R57: 0.06299212598 | S57: 0.03149606299 | T57: 0.03149606299 | V57: inch
A58: Development | B58: Panasonic | C58: ERJ-2RKF1820X | D58: 3 | E58: R1,R2, R3 | F58: 182R, 0.1W, 1% | G58: 0402 | H58: -55, +125 | I58: 0.01364 | J58: 250 | K58: 0.04092 | L58: Digi-Key | M58: 1 | N58: 0.5 | O58: 0.4 | Q58: mm | R58: 0.03937007874 | S58: 0.01968503937 | T58: 0.0157480315 | V58: inch
K59: 0
K60: 0
K61: 0
K62: 0
K63: 0
K64: 0
K65: 0
J67: Total | K67: =SUM(K2:K66) -> 27.33914
A70: Unit Lookup | B70: To alternate
A71: inch | B71: =1/B72 -> 25.4
A72: mm | B72: =1/25.4 -> 0.03937007874
A81: Row Labels | B81: Sum of Est. Cost
A82: +12v Supply | B82: 7.13416
A83: +3.3v Supply | B83: 1.93616
A84: Keypad | B84: 2.3186
A85: LIN | B85: 1.48246
A86: Micro | B86: 2.10728
A87: Motor | B87: 7.44934
A88: Sense | B88: 0.05652
A89: Wake Out | B89: 1.5031
A90: (blank)
A91: Grand Total | B91: 23.98762

Sheet LT3690 PS
A1: Signal | B1: Value | C1: Units | D1: Notes | F1: Based on LT3690
A2: V-IN | B2: 24 | C2: v | D2: Typical V-in
A3: V-IN Max | B3: 36 | C3: v | D3: Overload shutdown
A5: V-OUT Target | B5: 8 | C5: v
A6: Vin Low | B6: 9 | C6: v
A7: RT [R21] | B7: 72900 | C7: ohms
A8: R4 (FB to Gnd - R22) | B8: 38300 | C8: ohms | D8: R4 is data sheet reference
A9: R3 (Out to FB - R23) | B9: =B8*(V_OUT/V_FB-1) -> 344700 | C9: ohms | D9: R3 is data sheet reference
A10: =A8 & " => 1%" -> R4 (FB to Gnd - R22) => 1% | B10: =Resistor((B8)) -> 38300 | C10: ohms | D10: Selected Resistor Value
A11: =A9 & " => 1%" -> R3 (Out to FB - R23) => 1% | B11: =Resistor((B9)) -> 348000 | C11: ohms | D11: Selected Resistor Value
A12: =A7 & " => 1%" -> RT [R21] => 1% | B12: =Resistor((RT)) -> 73200 | C12: ohms | D12: Selected Resistor Value
A13: V-FB | B13: 0.8 | C13: v
A14: V-SW | B14: 0.37 | C14: v
A15: V-LS | B15: 0.12 | C15: v
A16: T-ON(min) | B16: 0.25 | C16: usec
A17: T-OFF(min) | B17: 0.21 | C17: usec
A18: Fsw(max) | B18: =(V_OUT+V_LS)/(0.000001*T_ON*(V_IN-V_SW+V_LS))/1000000 -> 1.367578947 | C18: MHz | D18: Highest acceptible frequency
A19: Freq (Select) | B19: =VLOOKUP(RT,A33:B47,2) -> 0.3 | C19: MHz | D19: Chosen frequency
A20: DC-min | B20: =F_Select*0.000001*T_ON*1000000 -> 0.075 | C20: % duty cycle
A21: DC-max | B21: =1-1000000*F_Select*0.000001*T_OFF -> 0.937 | C21: % duty cycle
A22: V-IN(min) | B22: =(V_OUT+V_LS)/(1-1000000*F_Select*0.000001*T_OFF)-V_LS+V_SW -> 8.915955176 | C22: v by duty cycle
A23: V-IN(max) | B23: =(V_OUT+V_LS)/(1000000*F_Select*0.000001*T_ON)-V_LS+V_SW -> 108.5166667 | C23: v by duty cycle
A24: I-L(peak) | B24: =8+(V_IN_OVERLOAD-V_OUT)/(0.000001*Inductance)*0.000001*T_ON -> 8.386001029 | C24: A
A25: L - Inductor | B25: =(V_OUT+V_LS)*0.67/F_Select -> 18.13466667 | C25: uHenry | D25: Target Value
A26: Lmin - Inductor (min) | B26: =(V_OUT +V_LS)*0.42/F_Select -> 11.368 | C26: uHenry | D26: Minimum value
A27: I-L(Peak to peak ripple) | B27: =(1-10%)*(V_OUT+V_LS)/(B25*F_SW) -> 0.2946704286 | C27: A
A28: C-OUT (output cap) | B28: =150/(V_OUT*F_SW) -> 13.71036022 | C28: uF | D28: (X5R or X7R ceramic best) or Electrolytic with ESR <= 0.03ohm
A29: C-Soft Start | B29: =B28/10000 -> 0.001371036022 | C29: uF
A30: T-Ramp | B30: =B29*0.8/0.000002 -> 548.4144089 | C30: usec
A32: Rt | B32: MHz
A33: 9590 | B33: 1.5
A34: 10600 | B34: 1.4
A35: 11800 | B35: 1.3
A36: 13300 | B36: 1.2
A37: 15000 | B37: 1.1
A38: 17000 | B38: 1
A39: 19600 | B39: 0.9
A40: 22700 | B40: 0.8
A41: 26800 | B41: 0.7
A42: 32400 | B42: 0.6
A43: 40200 | B43: 0.5
A44: 52200 | B44: 0.4
A45: 72900 | B45: 0.3
A46: 117000 | B46: 0.2
A47: 164000 | B47: 0.15

Sheet PCB Mech
A1: Origin for PCB | B1: Lower left corner | D1: from 5 Jan 2012 email | K1: Values | L1: mm | M1: Value | N1: in
A2: PCB width | B2: 1.179 | C2: in | K2: 25.4 | L2: mm | M2: =K2/25.4 -> 1 | N2: in | O2: test
A3: PCB height | B3: 3.25 | C3: in | K3: 4.034 | L3: mm | M3: =K3/25.4 -> 0.1588188976 | N3: in | O3: Ledge Diameter
A4: Hole 1 x (bottom left) | B4: =B2/2-0.315 -> 0.2745 | K4: 2.733 | L4: mm | M4: 0.1075984252 | N4: in | O4: Post Diameter
A5: Hole 1 y | B5: =(B3-2.972)/2 -> 0.139 | K5: 5 | L5: mm | M5: 0.1968503937 | N5: in | O5: Ramp width
A6: Hole 2 x (top-left) | B6: =B4 -> 0.2745 | K6: 25.637 | L6: mm | M6: 1.009330709 | N6: in | O6: lower post to lower diag rib
A7: Hole 2 y | B7: =B5+2.972 -> 3.111 | K7: 3.262 | L7: mm | M7: 0.1284251969 | N7: in | O7: =1.139+0.128 -> 1.267
A8: Hole 3 x (top-right) | B8: =B4+0.6299 -> 0.9044 | K8: 23.95 | L8: mm | M8: 0.9429133858 | N8: in | O8: =3.111-M8 -> 2.168086614
A9: Hole 3 y | B9: =B7 -> 3.111 | K9: 12.9 | L9: mm | M9: 0.5078740157 | N9: in
A10: Hole 4 x (bottom-right) | B10: =B8 -> 0.9044
A11: Hole 4 y | B11: =B5 -> 0.139
A12: notch 1 x (center) | B12: =B2/2-0.646 -> -0.0565
A13: notch 1 y | B13: 2.325
A14: notch 2 x | B14: =B2/2+0.648 -> 1.2375
A15: notch 2 y | B15: =B13 -> 2.325
E28: image is not quite symmetrical

Sheet PIC Load Dump
A1: Signal | B1: Value | C1: Units | D1: Notes | F1: VDD | G1: DAC Count | H1: DAC V | I1: Equiv Bat
A2: Battery | B2: 32 | C2: v | F2: 3.3 | G2: 0 | H2: =($F$2*G2/2^5) -> 0 | I2: =H2*($B$3+$B$4)/$B$4 -> 0
A3: R16 | B3: 100000 | C3: ohm | G3: 1 | H3: 0.103125 | I3: =H3*($B$3+$B$4)/$B$4 -> 1.265751832
A4: R20 | B4: 8870 | C4: ohm | G4: 2 | H4: 0.20625 | I4: =H4*($B$3+$B$4)/$B$4 -> 2.531503664
A5: V analog in | B5: =B2*B4/(B3+B4) -> 2.607146138 | C5: v | G5: 3 | H5: 0.309375 | I5: 3.797255496
A6: V Ref | B6: 3.3 | C6: v | G6: 4 | H6: 0.4125 | I6: 5.063007328
A7: A/D | B7: =B5/B6*2^12 -> 3236.021388 | C7: Counts | G7: 5 | H7: 0.515625 | I7: 6.32875916
G8: 6 | H8: 0.61875 | I8: 7.594510992
A9: R16 Nearest 1% | B9: =Resistor(B3) -> 100000 | C9: ohm | G9: 7 | H9: 0.721875 | I9: 8.860262824
A10: R20 Nearest 1% | B10: =Resistor((B4)) -> 8870 | C10: ohm | G10: 8 | H10: 0.825 | I10: 10.12601466
G11: 9 | H11: 0.928125 | I11: 11.39176649
G12: 10 | H12: 1.03125 | I12: 12.65751832
G13: 11 | H13: 1.134375 | I13: 13.92327015
G14: 12 | H14: 1.2375 | I14: 15.18902198
G15: 13 | H15: 1.340625 | I15: 16.45477382
G16: 14 | H16: 1.44375 | I16: 17.72052565
G17: 15 | H17: 1.546875 | I17: 18.98627748
G18: 16 | H18: 1.65 | I18: 20.25202931
G19: 17 | H19: 1.753125 | I19: 21.51778114
G20: 18 | H20: 1.85625 | I20: 22.78353298
G21: 19 | H21: 1.959375 | I21: 24.04928481
G22: 20 | H22: 2.0625 | I22: 25.31503664
G23: 21 | H23: 2.165625 | I23: 26.58078847
G24: 22 | H24: 2.26875 | I24: 27.8465403
G25: 23 | H25: 2.371875 | I25: 29.11229214
G26: 24 | H26: 2.475 | I26: 30.37804397
G27: 25 | H27: 2.578125 | I27: 31.6437958
G28: 26 | H28: 2.68125 | I28: 32.90954763
G29: 27 | H29: 2.784375 | I29: 34.17529946
G30: 28 | H30: 2.8875 | I30: 35.4410513
G31: 29 | H31: 2.990625 | I31: 36.70680313
G32: 30 | H32: 3.09375 | I32: 37.97255496
G33: 31 | H33: 3.196875 | I33: 39.23830679

Sheet WakeIn
A1: Signal | B1: Value | C1: Units | D1: Notes
A2: Battery | B2: 36 | C2: v
A3: R34 | B3: 5600 | C3: ohm | D3: Parallel resistors to handle the power
A4: R35 | B4: 5600 | C4: ohm
A5: Current R34 | B5: =$B$2/B3 -> 0.006428571429 | C5: A
A6: Current R35 | B6: =$B$2/B4 -> 0.006428571429 | C6: A
A7: Power R34 | B7: =$B$2*B5 -> 0.2314285714 | C7: W | D7: 0.25W
A8: Power R35 | B8: =$B$2*B6 -> 0.2314285714 | C8: W
E9: =12/0.004 -> 3000
A10: Battery (low) | B10: 12 | C10: v
A11: Load | B11: =1/(1/B3+1/B4) -> 2800 | C11: ohm
A12: WakeIn current | B12: =B10/B11 -> 0.004285714286 | C12: a
A15: R16 Nearest 1% | B15: =Resistor(B3, 10) -> 5620 | C15: ohm
A16: R20 Nearest 1% | B16: =Resistor(B4) -> 5620 | C16: ohm
D29: JD Requirement - 4 mA @ 12v for contact cleaning

Sheet WakeOut
A1: Subsystem | B1: Manufacturer | C1: Part Number | D1: Qty | E1: Designator | F1: Description | G1: Package | H1: T-storage | I1: Est. Cost | J1: Qty | K1: $ Ext. | L1: Source | M1: Length | N1: Width | O1: Height | P1: Depth | Q1: Units | R1: Length | S1: Width | T1: Height | U1: Depth | V1: Units
A3: Wake Out | B3: Infineon | C3: BSP452 | D3: =1+LEN(E3)-LEN(SUBSTITUTE(E3,",","")) -> 1 | E3: IC6 | F3: High side switch | G3: SOT-223 | I3: 1.4281 | J3: 100 | K3: =D3*I3 -> 1.4281 | L3: Digi-Key | M3: 6.5 | N3: 7 | O3: 1.7 | Q3: mm | R3: =IF(AND($Q3<>"",M3<>""),M3*VLOOKUP($Q3,$A$67:$B$69,2),"") ->  | S3: =IF(AND($Q3<>"",N3<>""),N3*VLOOKUP($Q3,$A$67:$B$69,2),"") ->  | T3: =IF(AND($Q3<>"",O3<>""),O3*VLOOKUP($Q3,$A$67:$B$69,2),"") ->  | U3: =IF(AND($Q3<>"",P3<>""),P3*VLOOKUP($Q3,$A$67:$B$69,2),"") ->  | V3: =IF(Q3<>"",IF(Q3=$A$69,$A$68,$A$69),"") -> 0
A5: Wake Out | B5: Infineon | C5: BTS4140N | D5: =1+LEN(E5)-LEN(SUBSTITUTE(E5,",","")) -> 1 | E5: IC6 | F5: high side driver | G5: SOT-223 | I5: 0.9344 | J5: 100 | K5: =D5*I5 -> 0.9344 | L5: Digi-Key
A6: Wake Out | B6: Infineon | C6: BSS123 L6327 | D6: =1+LEN(E6)-LEN(SUBSTITUTE(E6,",","")) -> 1 | F6: N-channel mosfet | G6: SOT-23 | I6: 0.1512 | J6: 100 | K6: =D6*I6 -> 0.1512 | L6: Digi-Key

Sheet LED Backlight
A1: LEDs tied to 12v supply | B1: Value | C1: Units | E1: Notes
A2: LED Current at 12v | B2: 0.015 | C2: A
A3: Number LEDs | B3: 5 | C3: qty
A4: Q2 collector current | B4: =B2*B3 -> 0.075
A5: Q2 Beta | B5: 50 | C5: Beta
A6: Q2 Base Drive | B6: =B4/B5 -> 0.0015 | C6: A
A7: Q2 Vbe | B7: 0.6 | C7: v
A8: Port Pin Vout High | B8: 3.1 | C8: v
A9: R14 Base Drive resistor | B9: =(B8-B7)/B6 -> 1666.666667 | C9: ohm
A10: Nearest 1% value | B10: =Resistor((B9)) -> 1650 | C10: ohm
A11: R14 Power dissipation | B11: =(B8-B7)*B6 -> 0.00375 | C11: W
E14: Touch Panel Manufacturer and TriMark have not yet current requirements
A16: Development LEDs | B16: Value | C16: Units
A17: LED Drive voltage | B17: 3.3 | C17: v
A18: LED voltage drop max | B18: 2.4 | C18: v
A19: LED drive current | B19: 0.005 | C19: A
A20: Series Resistor | B20: =(B17-B18)/B19 -> 180 | C20: ohm
A21: Nearest 1% value | B21: =Resistor(B20) -> 178 | C21: ohm
A22: Resistor Power dissipation | B22: =(B17-B18)*B19 -> 0.0045 | C22: W
B25: Value | C25: Units
A26: LED Voltage Drop | B26: 3.2 | C26: v
A27: LED Max Current | B27: 0.02 | C27: A
A28: # LEDs in Series | B28: 2 | C28: pc
A29: Resistance - Series | B29: 130 | C29: ohm
A30: Voltage - Minimum | B30: 9 | C30: v
A31: Voltage - Maximum | B31: 32 | C31: v
A34: Current at Vmin | B34: =(B30-B$28*B$26)/B$29 -> 0.02 | C34: A
A35: Current at Vmax | B35: =(B31-B$28*B$26)/B$29 -> 0.1969230769 | C35: A

Sheet Prog
A1: Reset protection | B1: Value | C1: Units
A2: Series Resistor | B2: 100 | C2: ohm
A3: Max voltage diff | B3: 5 | C3: v
A4: Resistor Power Diss | B4: =B3^2/B2 -> 0.25 | C4: W

Sheet Analog Power Supply
A1: Description | B1: Value | C1: Units | D1: Notes
A2: LM2936DT-3.3 | B2: 3.3 | C2: v | D2: regulated output voltage, 50 mA max. -50, +60
A4: V Battery min | B4: 9 | C4: v
A5: V Battery max operating | B5: 32 | C5: v | D5: max operating (does not subtract reverse diode
A6: V Battery max | B6: 36 | C6: v | D6: auto-sleep
A8: I Load min | B8: 0.5 | C8: mA
A9: I Load max operating | B9: 12 | C9: mA | D9: Average current
A10: I Load max | B10: 2 | C10: mA
A13: Power dissipation min | B13: =(B4-$B$2)*B8 -> 2.85 | C13: mW
A14: Power dissipation max oper. | B14: =(B5-$B$2)*B9 -> 344.4 | C14: mW | D14: max operating
A15: Power dissipation max | B15: =(B6-$B$2)*B10 -> 65.4 | C15: mW | D15: Linear regulator dissipation
E16: Diode Drop | F16: 1 | G16: v
A17: Ambient temp nominal | B17: 25 | C17: °C | E17: Current | F17: 0.05 | G17: A
A18: Ambient temp max | B18: 85 | C18: °C | E18: Diode Power | F18: =1000*F16*F17 -> 50 | G18: mW
A21: Temp Rise J-A | B21: 140 | C21: °C / W | D21: Component spec
A23: Calc. Temp Rise | B23: =B21*B14/1000 -> 48.216 | C23: °C
A24: Calc. Temp max oper | B24: =B18+B23 -> 133.216 | C24: °C | D24: Spec is 150°C, with power diss internally limited
A27: Current Requirements | B27: Value | C27: Units
A28: PIC | B28: 5 | C28: mA
A29: LED Driver | B29: =1000*(B2-0.6)/2050 -> 1.317073171 | C29: mA
A30: Acoustic Driver | B30: =1000*(B2-0.6)/33000 -> 0.08181818182 | C30: mA
A31: Test Point Drivers (3) | B31: =3*1000*(B2-1.6)/1080 -> 4.722222222 | C31: mA
A32: HV Enable | B32: =1000*B2/100000 -> 0.033 | C32: mA
A33: LIN RxD | B33: =1000*B2/100000 -> 0.033 | C33: mA
A34: Total | B34: =SUM(B28:B33) -> 11.18711357 | C34: mA

Sheet Motor
A1: Description | B1: Value | C1: Units | D1: Notes
A2: Min Voltage | B2: 9 | C2: V | D2: Assumes the motor is rated to operate at this minimum voltage
A3: Motor Current @Min V | B3: 5 | C3: A | D3: And current
A4: Power Min | B4: =B2*B3 -> 45 | C4: W
A6: Voltage 1 | B6: 12 | C6: V
A7: Motor Current @V1 | B7: =B$3 * B6/B$2 -> 6.666666667 | C7: A
A8: Power 1 | B8: =B6*B7 -> 80 | C8: W
A10: Voltage 2 | B10: 24 | C10: V
A11: Motor Current @V2 | B11: =B$3 * B10/B$2 -> 13.33333333 | C11: A
A12: Power 2 | B12: =B10*B11 -> 320 | C12: W
A14: Voltage 2 | B14: 32 | C14: V
A15: Motor Current @V2 | B15: =B$3 * B14/B$2 -> 17.77777778 | C15: A
A16: Power 3 | B16: =B14*B15 -> 568.8888889 | C16: W
A18: Error Flag Behavior | B18: Value | C18: Units | D18: Description
A19: Vcc | B19: 3.3 | C19: v
A20: EF leakage | B20: 10 | C20: uA
A21: Nominal equiv R | B21: =B19/(B20*0.000001) -> 330000 | C21: ohm
A22: Pullup | B22: =Resistor(75000) -> 75000 | C22: ohm
A23: EF V leakage | B23: =B19*B21/(B22+B21) -> 2.688888889 | C23: bill25
A25: PIC Input High (TTL) | B25: 2 | C25: v
A26: PIC Input High (TTL2) | B26: =0.8+0.25*B19 -> 1.625 | C26: v
A27: PIC Input High (Schmitt) | B27: =0.8*B19 -> 2.64 | C27: v
A28: PIC Input High (I2C) | B28: =0.7*B19 -> 2.31 | C28: v
A29: PIC Input High (SMBus) | B29: 2.1 | C29: v

Sheet Acoustic
A1: Acoustic Signal
A2: 4khz - http://www.soundsnap.com/search/audio/4khz/popular
A3: 2khz - http://www.soundsnap.com/search/audio/2khz/popular
A5: Manufacturer | B5: Freq | C5: Temp Range | D5: $ ea | E5: $ @500 | F5: Web
A7: CUI Inc (smd) | B7: 4 khz | C7: '-30 + 70 | D7: $4.81 qty 1 | E7: $2.49 qty 500 | F7: http://search.digikey.com/us/en/products/CMI-1240/102-1196-5-ND/504829
A8: CUI Inc (thru hole) | B8: 4 khz | C8: '-20 +70 | D8: $3.19 qty 1 | E8: $1.65 qty 500 | F8: http://search.digikey.com/us/en/products/CEP-2242/102-1115-ND/412374
A9: PUI Audio (thru hole) | B9: 4 khz | C9: '-20 +70 | D9: $3.66 qty 1 | E9: $2.20 qty 500 | F9: http://search.digikey.com/us/en/products/AI-1440-TWT-12V-R/668-1024-ND/1464763
A10: Mallory (thru hole) | B10: 4.1 khz | C10: '-20 + 90 | D10: $2.43 qty 1 | E10: $2.09 qty 500 | F10: http://search.digikey.com/us/en/products/PK-12N40PQ/458-1066-ND/969793
A11: Kobiton (thru hole) | B11: 4 khz | C11: '-20 + 105 | D11: $4.26 qty 1 | E11: $2.59 qty 500 | F11: http://www.mouser.com/ProductDetail/Kobitone/254-15210-ROX/?qs=05UEgX2TgG1gFl%2faATOCEw%3d%3d
A15: Acoustic Supply | B15: 12 | C15: v
A16: Acoustic Current | B16: 0.005 | C16: A
A17: Driver gain (min) | B17: 50
A18: Base Drive Current | B18: =B16/B17 -> 0.0001 | C18: A
A19: Base Drive Voltage | B19: 3.3 | C19: v
A20: Base Drive Resistance | B20: =B19/B18 -> 33000

Sheet LIN Xcvr
A1: Vendor | B1: Part # | C1: LIN V | D1: Price | E1: Qty | F1: V Reg | G1: Vreg | H1: Temp | I1: V Supply | J1: Bus Voltage | K1: Load Dump | L1: 3v IO | M1: Normal | N1: Sleep | O1: Standby | P1: Wakup Pin | Q1: Tx timeout
A2: ON Semi | B2: NCV7321 | F2: N | H2: -40, +125 | I2: 27 | J2: 45 | K2: 45v | L2: Y | M2: Y | N2: 20 uA | O2: Y
A3: TI | B3: SN65HVDA195-Q1 | D3: 0.47 | E3: 1000 | F3: N | H3: -40, +125 | I3: 27 | J3: 40 | L3: Y | P3: Y | Q3: No
A4: TI | B4: TPIC1021A-Q1 - | D4: 0.4 | E4: 1000 | F4: N | H4: -40, +125 | I4: 27 | J4: 40 | L4: Y | P4: Y | Q4: Yes
A5: NXP | B5: TJA1028TK/3V3 | F5: Y | G5: 3.3v @ 70mA | H5: -40, +150 | I5: 40 | J5: 40 | L5: Y | N5: 12uA | O5: 45uA | Q5: Yes
A6: NXP | B6: TJA1028TK/5V0 | D6: 0.7 | E6: 1500 | F6: Y | G6: 5.0v @ 70mA | H6: -40, +150 | I6: 40 | J6: 40 | L6: Y | N6: 12uA | O6: 45uA | Q6: Yes
A7: NXP | B7: TJA1021 | C7: 2.1 | D7: 0.46 | E7: 2500 | F7: N | H7: -40, +150 | I7: 40 | Q7: Yes
A8: NXP | B8: TJA1022 | C8: 2.2 | F8: N | H8: -40, +150 | I8: 40 | Q8: Yes
A9: Infineon | B9: TLE6258 | C9: 2
A10: Infineon | B10: TLE7259-2GE | C10: 2
A11: Infineon | B11: TLE8458GV33 | C11: 2.1 | D11: 1.03 | E11: 2500 | F11: Y | G11: 3.3 @ 50mA | L11: Y | M11: Y | P11: Y | Q11: Yes
A12: Infineon | B12: TLE8458G | C12: 2.1 | D12: 1.03 | E12: 2500 | F12: Y | G12: 5.0 @ 50mA | H12: -40, +150 | I12: 40 | J12: 40 | L12: Y | P12: Y
A13: Micrchip | B13: MCP2021 | C13: 2.1 | D13: 0.95 | E13: 500 | F13: Y | G13: 3.3 @ 50mA | H13: -40, +125 | I13: 30 | K13: 43
A14: Micrchip | B14: MCP2021 | C14: 2.1 | D14: 0.95 | E14: 500 | F14: Y | G14: 5.0 @ 50mA | H14: -40, +125 | I14: 30 | K14: 43
A17: LIN Master | B17: Value | C17: Units
A18: Vsupply | B18: 27 | C18: v
A19: Resistor | B19: 1000 | C19: ohm
A20: Power Dis | B20: =B18^2/B19 -> 0.729 | C20: W
A21: Current | B21: =B18/B19 -> 0.027 | C21: A
A23: Microcontroller | F23: Qtouch
A24: Atmel | B24: ATA66xx | D24: 2.81 | E24: 1000
A25: Atmel | B25: ATmega16M1 | D25: 3.87 | E25: 1600
A26: Atmel | B26: ATtiny167 | D26: 1.75 | E26: 1500

Sheet Ribbon Con
A1: Pin | B1: X | C1: Y | D1: Units
A2: 1 | B2: =-2.5-1.25/2 -> -3.125 | C2: 1 | D2: mm
A3: 2 | B3: =(A3-A$2)*1.25+B$2 -> -1.875 | C3: =C2-2 -> -1 | D3: mm
A4: 3 | B4: =(A4-A$2)*1.25+B$2 -> -0.625 | C4: =C2 -> 1 | D4: mm
A5: 4 | B5: =(A5-A$2)*1.25+B$2 -> 0.625 | C5: =C3 -> -1 | D5: mm
A6: 5 | B6: =(A6-A$2)*1.25+B$2 -> 1.875 | C6: =C4 -> 1 | D6: mm
A7: 6 | B7: =(A7-A$2)*1.25+B$2 -> 3.125 | C7: =C5 -> -1 | D7: mm
A9: Housing Left | B9: =-13.25/2 -> -6.625
A10: Housing Right | B10: =-B9 -> 6.625
A11: Slot Left | B11: =-8.95/2 -> -4.475
A12: Slot Right | B12: =-B11 -> 4.475
A16: Pin | B16: X | C16: Y | D16: Units
A17: 1 | B17: -1.25 | C17: 1 | D17: mm
A18: 2 | B18: =(A18-A$17)*1.25+B$17 -> 0 | C18: =C17-2 -> -1 | D18: mm
A19: 3 | B19: =(A19-A$17)*1.25+B$17 -> 1.25 | C19: =C17 -> 1 | D19: mm
A22: Housing Left | B22: =-9.5/2 -> -4.75
A23: Housing Right | B23: =-B22 -> 4.75
A24: Slot Left | B24: =-5.2/2 -> -2.6
A25: Slot Right | B25: =-B24 -> 2.6
B27: 84.86 | C27: mm
B28: =B27/25.4 -> 3.340944882
B29: 21.79 | C29: mm
B30: =B29/25.4 -> 0.8578740157

Sheet Block Cost
A1: Functional Block | B1: Est. Cost | C1: Qty | E1: Notes
A2: Micro | B2: 4.5 | C2: 2000 | E2: micro, crystal, caps
A3: Config Storage | B3: 0.25 | C3: 2000 | E3: eerom
A4: Power Supply | B4: 4 | C4: 2000 | E4: switching
A5: Learn Mode | B5: 0.1 | C5: 2000 | E5: 2xR, 1xC
A6: Wakeup In | B6: 0.25 | C6: 2000
A7: Wakeup Out | B7: 1 | C7: 2000
A8: LIN Transceiver | B8: 1 | C8: 2000
A9: CAN Transceiver | B9: 1 | C9: 2000 | E9: xcvr, filter, diodes
A10: H-Driver | B10: 3.75 | C10: 2000
A11: LED Driver | B11: 0.1 | C11: 2000
A12: Keypad Sense | B12: 0.25 | C12: 2000
A13: Acoustic Signal | B13: 2.25 | C13: 2000 | E13: need to find -40 to +85 part
A14: Miscellaneous | B14: 3 | C14: 2000 | E14: whatever was forgotton above
A15: Estimated Total | B15: =SUM(B2:B14) -> 21.45
A19: Estimated costs includes the primary and supporting components
B24: LIN | C24: CAN | D24: JD Exclusive | E24: Description
B25: Yes | C25: No | D25: No | E25: smaller micro, no JD/OS
B26: No | C26: Yes | D26: Yes | E26: JD/OS, "fully integrated"
B27: No | C27: Yes | D27: No | E27: powerful micro, ~25-50,000 lines of code

Sheet Components
A1: Category | B1: ScratchNotes | C1: Additional Notes
A2: H-Bridge | B2: BTN7960/70/71 | C2: half-Bridge 40V 40A | D2: requires 2 part
A3: H-Bridge | B3: TLE6208-3 | C3: 3 half-bridge .8A 32v | D3: 0.8A not enough
A4: H-Bridge | B4: TLE8201R | C4: Full Door module - Mirror w/heat/light | D4: too many functions - cost
A5: H-Bridge | B5: TLE8203E | C5: Full Door module - Mirror w/heat/light | D5: not enough current
A6: H-Bridge | B6: TLE84106EL | C6: Hex half-bridge | D6: 18v, 0.8A
A7: H-Bridge | B7: TLE7181EM | C7: H-Bridge Driver: 34v, 10 uA quiescient, lots of features (may cost too much) | D7: Pre-Driver for mosfets
A8: H-Bridge | B8: BTM7740G | C8: 8A peak (25C), 5uA quiesc, 40V
A9: H-Bridge | B9: TLE5205 | C9: 4A 40V status
A10: H-Bridge | B10: TLE5206 | C10: 4A 40V status
B12: BTS50015 | C12: Single high-side 28V 33A, 18uA standby | D12: If we need a pre-enable
A14: System Basis Chip | B14: TLE8261E | C14: System Basis Chip, reg, CAN transceiver, watchdog | D14: very interesting combination of parts, but for a system that does not need them all, this is overkill and no alternate sourcing.
A15: System Basis Chip | B15: TLE8262E | C15: 1xLIN
A16: System Basis Chip | B16: TLE8263E | C16: 2xLIN
A17: System Basis Chip | B17: TLE8264E | C17: 3xLIN
A18: System Basis Chip | B18: TLE6266G | C18: CAN, Watchdog | D18: on special request only
A19: Window Lift Module | B19: TLE7810 | C19: Full Window Control on LIN w/8051
A22: Power Supply | B22: TLE6365G | C22: step down w/reset 8 to 40v | D22: no enable
A23: Power Supply | B23: TLE6711G | C23: boost/buck, watchdog, enable | D23: watchdog compatibility
A24: Power Supply | B24: TLE7368E | C24: 5.5v, reset, watchdog | D24: overkill - for high end multi-voltage
A25: Power Supply | B25: TLE4278G | C25: Reset, watchdog | D25: linear part, but with possibly adequate heat-sink
A26: Power Supply | B26: LTC3115-1 | C26: buck-boost, 2.7-40v, 5v1A out, enable, burst mode
A27: Power Supply | B27: LT3433 | C27: buck-boost, 4-60v, 5v .3A, enable
A28: Power Supply | B28: LT3689 | C28: step-down, por, wdt | D28: wdt compatibility?
A29: Power Supply | B29: LT3682 | C29: uPower step down,
A30: Power Supply | B30: LT3631 | C30: 4.5 to 45 to 5v@100mA | D30: nice, but 100mA max
A31: Power Supply | B31: LT3470A | C31: buck reg 12v to 5v@250mA | D31: 8-pin
A32: Power Supply | B32: LTM8021 | C32: 7.5-36v to 5v@500mA | D32: full uModule w most parts (LGA pkg)
A33: Power Supply | B33: LT3502 | C33: 7-40v to 5v@500mA
A34: Power Supply | B34: LT3970 | C34: 7-40 to 5v@350mA, enable, power good out | D34: 10-pin
A35: Power Supply | B35: LT1934ES6 | C35: 6.5-34v to 5v@250mA, enable | D35: 6-pin
A39: Capacitive Touch Sense | C39: Can share matrix with backlight LEDs
A42: Key | B42: Not yet analyzed | C42: part identified from initial scan/research
B43: Candidate Parts | C43: looks even better
B44: Candidate Parts | C44: seems to mee the requirements
B45: Defer rejection | C45: further analysis may be required
B46: Rejected | C46: not appropriate for this project (reason noted)
